fUST/lending_fUST_20240605
["ID","MTS","AMOUNT","RATE_DAILY","PERIOD"]
[328587924,1717573866805,-500.0,0.00025205,6]
[328587925,1717573866814,-500.0,0.00025205,6]
[328587926,1717573866823,-585.27735547,0.00025205,6]
[328587927,1717573866833,-520.8,0.00025205,6]
[328587928,1717573866842,-407.85687796,0.00025205,6]
[328587929,1717573866851,-500.0,0.00025205,6]
[328587930,1717573866860,-500.0,0.00025205,6]
[328587931,1717573866869,-541.75,0.00025205,6]
[328587932,1717573866878,-500.0,0.00025205,6]
[328587933,1717573866887,-782.35,0.00025205,6]
[328587934,1717573866902,-385.95,0.00025205,6]
[328587935,1717573866920,-500.0,0.00025205,6]
[328587936,1717573866936,-932.32,0.00025205,6]
[328587937,1717573866956,-500.0,0.00025205,6]
[328587938,1717573866976,-500.0,0.00025205,6]
[328587939,1717573866994,-1047.57,0.00025205,6]
[328587940,1717573867011,-500.0,0.00025205,6]
[328587941,1717573867026,-537.5,0.00025205,6]
[328587942,1717573867042,-1284.8,0.00025205,6]
[328587943,1717573867060,-500.0,0.00025205,6]
[328587944,1717573867080,-500.0,0.00025205,6]
[328587945,1717573867092,-1525.03,0.00025205,6]
[328587946,1717573867108,-500.0,0.00025205,6]
[328587947,1717573867123,-3286.59,0.00025205,6]
[328587948,1717573867138,-500.0,0.00025205,6]
[328587949,1717573867155,-500.0,0.00025205,6]
[328587950,1717573867169,-1467.12,0.00025205,6]
[328587951,1717573867183,-527.9,0.00025205,6]
[328587952,1717573867196,-614.49,0.00025205,6]
[328587953,1717573867210,-714.09,0.00025205,6]
[328587954,1717573867224,-1675.2,0.00025205,6]
[328587955,1717573867238,-500.0,0.00025205,6]
[328587956,1717573867253,-500.0,0.00025205,6]
[328587957,1717573867267,-3017.64,0.00025205,6]
[328587958,1717573867281,-674.07,0.00025205,6]
[328587959,1717573867296,-500.0,0.00025205,6]
[328587960,1717573867310,-911.66,0.00025205,6]
[328587961,1717573867324,-2665.97,0.00025205,6]
[328587962,1717573867337,-552.13,0.00025205,6]
[328587963,1717573867352,-500.0,0.00025205,6]
[328587964,1717573867365,-182.99437804,0.00025235,2]
[328587965,1717573867379,-254.51922925,0.00025235,2]
[328587966,1717573867393,-155.06050411,0.00025235,2]
[328587967,1717573867407,-606.170302,0.00025236,2]
[328587968,1717573867420,-459.97801304,0.00025236,2]
[328587969,1717573867434,-181.0254006,0.00025237,2]
[328587970,1717573867448,-155.27700761,0.00025237,2]
[328587971,1717573867463,-303.8993979,0.00025237,2]
[328587972,1717573867476,-151.0,0.0002532,10]
[328587973,1717573867490,-875.0,0.00025361,35]
[328587974,1717573867504,-875.0,0.00025371,35]
[328587975,1717573867518,-875.0,0.00025381,35]
[328587976,1717573867536,-151.0,0.00025383,7]
[328587977,1717573867549,-151.0,0.00025383,7]
[328587978,1717573867637,-302.62738167,0.00025389,2]
[328587979,1717573867654,-302.88682023,0.00025389,2]
[328587980,1717573867663,-155.37223594,0.00025389,2]
[328587981,1717573867671,-156.37027356,0.0002539,2]
[328587982,1717573867680,-192.85783292,0.0002539,2]
[328587983,1717573867691,-58882.38724772,0.00025391,30]
[328587984,1717573867804,-2366.08764797,0.00025391,30]
[328587985,1717573867821,-500.0,0.00024383,2]
[328587986,1717573867830,-6699.999999,0.00025391,30]
[328587987,1717573867842,-1011.12281192,0.00025391,30]
[328587988,1717573867859,-261.823506,0.00021,2]
[328587989,1717573867869,-2364.61936246,0.00025391,30]
[328587990,1717573867881,-194650.02837285,0.00025391,30]
[328587991,1717574949261,-260.12980989,0.00015919,2]
[328587992,1717574949282,-568.44231144,0.00016019,2]
[328587993,1717574949301,-253.34701878,0.00016019,2]
[328587994,1717574949321,-272.3727093,0.0001602,2]
[328587995,1717574949341,-7913.37404345,0.0001602,2]
[328587996,1717574949361,-2766.34638909,0.00016021,2]
[328587997,1717574949382,-2408.71611034,0.00016022,2]
[328587998,1717574949404,-13394.9715411,0.00016129,2]
[328587999,1717574949424,-250.0,0.00016429,2]
[328588000,1717574949445,-1048.552324,0.0001671,2]
[328588001,1717574949465,-1584.2931692,0.00017077,2]
[328588002,1717574949486,-200.8693954,0.00017986,2]
[328588003,1717574949507,-10187.59760109,0.00017999,2]
[328588043,1717575032495,-292.79769844,0.00017999,2]
[328588045,1717575032504,-2762.28835921,0.00018,2]
[328588047,1717575032513,-162.96737404,0.00019077,2]
[328588049,1717575032522,-163.12815665,0.00019078,2]
[328588051,1717575032534,-240.82,0.00019168,3]
[328588053,1717575032543,-253.78701709,0.00019176,2]
[328588055,1717575032555,-751.73313731,0.00019176,2]
[328588057,1717575032564,-889.00156395,0.00019177,2]
[328588060,1717575032575,-660.60013339,0.00019177,2]
[328588062,1717575032587,-336.20244903,0.00019177,2]
[328588064,1717575032595,-2706.03373177,0.00019177,2]
[328588066,1717575032605,-547.70562372,0.00019178,2]
[328588068,1717575032614,-395.28860437,0.00019178,2]
[328588070,1717575032623,-1051.50901227,0.00019178,2]
[328588072,1717575032632,-1051.50901227,0.00019178,2]
[328588074,1717575032641,-1051.50901227,0.00019178,2]
[328588076,1717575032650,-1051.50901227,0.00019178,2]
[328588078,1717575032658,-1051.50901227,0.00019178,2]
[328588080,1717575032667,-1051.50901227,0.00019178,2]
[328588082,1717575032676,-1051.50901227,0.00019178,2]
[328588084,1717575032685,-1051.50901227,0.00019178,2]
[328588086,1717575032694,-1051.50901227,0.00019178,2]
[328588088,1717575032703,-1051.50901227,0.00019178,2]
[328588090,1717575032713,-1051.50901227,0.00019178,2]
[328588092,1717575032722,-1051.50901227,0.00019178,2]
[328588094,1717575032732,-1051.50901227,0.00019178,2]
[328588096,1717575032741,-1051.50901227,0.00019178,2]
[328588098,1717575032751,-1051.50901227,0.00019178,2]
[328588100,1717575032760,-1051.50901227,0.00019178,2]
[328588102,1717575032769,-1051.50901227,0.00019178,2]
[328588104,1717575032778,-1051.50901227,0.00019178,2]
[328588106,1717575032787,-1051.50901227,0.00019178,2]
[328588108,1717575032796,-1051.50901227,0.00019178,2]
[328588110,1717575032806,-1051.50901227,0.00019178,2]
[328588112,1717575032815,-1051.50901227,0.00019178,2]
[328588114,1717575032824,-1051.50901227,0.00019178,2]
[328588116,1717575032834,-1051.50901227,0.00019178,2]
[328588118,1717575032844,-1051.50901227,0.00019178,2]
[328588120,1717575032853,-1051.50901227,0.00019178,2]
[328588122,1717575032862,-1051.50901227,0.00019178,2]
[328588124,1717575032871,-1051.50901227,0.00019178,2]
[328588126,1717575032880,-1051.50901227,0.00019178,2]
[328588128,1717575032889,-1051.50901227,0.00019178,2]
[328588130,1717575032899,-1051.50901227,0.00019178,2]
[328588131,1717575032908,-646.23315385,0.00019178,2]
[328588156,1717575039028,-405.27585842,0.00019178,2]
[328588157,1717575039040,-1051.50901227,0.00019178,2]
[328588158,1717575039050,-1051.50901227,0.00019178,2]
[328588159,1717575039059,-1051.50901227,0.00019178,2]
[328588160,1717575039069,-568.06156977,0.00019178,2]
[328588164,1717575039152,-483.4474425,0.00019178,2]
[328588165,1717575039162,-1051.50901227,0.00019178,2]
[328588166,1717575039172,-36.21616281,0.00019178,2]
[328588167,1717575039184,-368.85149655,0.00019178,2]
[328588181,1717575043814,-646.44135291,0.00019178,2]
[328588182,1717575043826,-1051.50901227,0.00019178,2]
[328588183,1717575043835,-1051.50901227,0.00019178,2]
[328588184,1717575043845,-1051.50901227,0.00019178,2]
[328588185,1717575043855,-1051.50901227,0.00019178,2]
[328588186,1717575043866,-1051.50901227,0.00019178,2]
[328588187,1717575043875,-1051.50901227,0.00019178,2]
[328588188,1717575043884,-1051.50901227,0.00019178,2]
[328588189,1717575043894,-1051.50901227,0.00019178,2]
[328588190,1717575043903,-1051.50901227,0.00019178,2]
[328588191,1717575043912,-1051.50901227,0.00019178,2]
[328588192,1717575043922,-500.0,0.00019178,2]
[328588193,1717575043932,-374.71567856,0.00019178,2]
[328588194,1717575043942,-483.99924094,0.00019178,2]
[328588195,1717575043951,-1912.07005262,0.00019178,2]
[328588196,1717575043961,-1912.07005262,0.00019178,2]
[328588197,1717575043972,-1912.07005262,0.00019178,2]
[328588198,1717575043981,-1912.07005262,0.00019178,2]
[328588199,1717575043990,-1912.07005262,0.00019178,2]
[328588200,1717575043999,-1912.07005262,0.00019178,2]
[328588201,1717575044008,-1912.07005262,0.00019178,2]
[328588202,1717575044017,-1912.07005262,0.00019178,2]
[328588203,1717575044026,-1912.07005262,0.00019178,2]
[328588204,1717575044038,-1912.07005262,0.00019178,2]
[328588205,1717575044049,-1912.07005262,0.00019178,2]
[328588206,1717575044057,-1912.07005262,0.00019178,2]
[328588207,1717575044066,-124.28067532,0.00019178,2]
[328588208,1717575044080,-1787.7893773,0.00019178,2]
[328588209,1717575044091,-1912.07005262,0.00019178,2]
[328588210,1717575044100,-1912.07005262,0.00019178,2]
[328588211,1717575044110,-1912.07005262,0.00019178,2]
[328588212,1717575044261,-1912.07005262,0.00019178,2]
[328588213,1717575044271,-1912.07005262,0.00019178,2]
[328588214,1717575044280,-1912.07005262,0.00019178,2]
[328588215,1717575044289,-1912.07005262,0.00019178,2]
[328588216,1717575044298,-1912.07005262,0.00019178,2]
[328588217,1717575044308,-1912.07005262,0.00019178,2]
[328588218,1717575044317,-1912.07005262,0.00019178,2]
[328588219,1717575044326,-214.13160425,0.00019178,2]
[328588220,1717575044335,-393.85608357,0.00019178,2]
[328588221,1717575044344,-500.0,0.00019178,2]
[328588222,1717575044353,-374.06712603,0.00019178,2]
[328588223,1717575044362,-500.0,0.00019178,2]
[328588224,1717575044371,-500.0,0.00019178,2]
[328588225,1717575044381,-500.0,0.00019178,2]
[328588226,1717575044391,-190.35191775,0.00019178,2]
[328588227,1717575044400,-405.48536158,0.00019178,2]
[328588228,1717575044410,-500.0,0.00019178,2]
[328588229,1717575044418,-466.05278764,0.00019178,2]
[328588230,1717575044427,-357.48192485,0.00019178,2]
[328588231,1717575044437,-500.0,0.00019178,2]
[328588232,1717575044446,-200.0,0.00019178,2]
[328588233,1717575044456,-500.0,0.00019178,2]
[328588234,1717575044465,-500.0,0.00019178,2]
[328588235,1717575044474,-500.0,0.00019178,2]
[328588236,1717575044483,-500.0,0.00019178,2]
[328588237,1717575044494,-500.0,0.00019178,2]
[328588238,1717575044503,-532.59248522,0.00019178,2]
[328588239,1717575044512,-437.55532937,0.00019178,2]
[328588240,1717575044521,-500.86320292,0.00019178,2]
[328588241,1717575044530,-500.0,0.00019178,2]
[328588242,1717575044539,-441.95749089,0.00019178,2]
[328588243,1717575044548,-500.0,0.00019178,2]
[328588244,1717575044557,-500.0,0.00019178,2]
[328588245,1717575044566,-374.09817113,0.00019178,2]
[328588246,1717575044576,-388.78103986,0.00019178,2]
[328588247,1717575044585,-468.55352757,0.00019178,2]
[328588248,1717575044594,-500.0,0.00019178,2]
[328588249,1717575044603,-500.0,0.00019178,2]
[328588250,1717575044612,-566.14208424,0.00019178,2]
[328588251,1717575044621,-231.73275387,0.00019178,2]
[328588252,1717575044629,-500.0,0.00019178,2]
[328588253,1717575044638,-349.36732755,0.00019178,2]
[328588254,1717575044647,-382.25474463,0.00019178,2]
[328588255,1717575044656,-500.0,0.00019178,2]
[328588256,1717575044665,-500.0,0.00019178,2]
[328588257,1717575044674,-308.32039119,0.00019178,2]
[328588258,1717575044683,-500.0,0.00019178,2]
[328588259,1717575044692,-500.0,0.00019178,2]
[328588260,1717575044700,-500.0,0.00019178,2]
[328588261,1717575044709,-500.0,0.00019178,2]
[328588262,1717575044718,-500.0,0.00019178,2]
[328588263,1717575044727,-261.0725447,0.00019178,2]
[328588264,1717575044736,-332.00887731,0.00019178,2]
[328588265,1717575044745,-568.09363526,0.00019178,2]
[328588266,1717575044755,-568.09363526,0.00019178,2]
[328588267,1717575044764,-568.09363526,0.00019178,2]
[328588268,1717575044773,-568.09363526,0.00019178,2]
[328588269,1717575044782,-568.09363526,0.00019178,2]
[328588270,1717575044790,-568.09363526,0.00019178,2]
[328588271,1717575044800,-568.09363526,0.00019178,2]
[328588272,1717575044808,-568.09363526,0.00019178,2]
[328588273,1717575044817,-568.09363526,0.00019178,2]
[328588274,1717575044826,-568.09363526,0.00019178,2]
[328588275,1717575044835,-568.09363526,0.00019178,2]
[328588276,1717575044844,-568.09363526,0.00019178,2]
[328588277,1717575044853,-568.09363526,0.00019178,2]
[328588278,1717575044862,-568.09363526,0.00019178,2]
[328588279,1717575044870,-568.09363526,0.00019178,2]
[328588280,1717575044879,-568.09363526,0.00019178,2]
[328588281,1717575044888,-568.09363526,0.00019178,2]
[328588282,1717575044897,-568.09363526,0.00019178,2]
[328588283,1717575044906,-568.09363526,0.00019178,2]
[328588284,1717575044915,-568.09363526,0.00019178,2]
[328588285,1717575044924,-568.09363526,0.00019178,2]
[328588286,1717575044933,-568.09363526,0.00019178,2]
[328588287,1717575044942,-568.09363526,0.00019178,2]
[328588288,1717575044951,-568.09363526,0.00019178,2]
[328588289,1717575044960,-568.09363526,0.00019178,2]
[328588290,1717575044969,-568.09363526,0.00019178,2]
[328588291,1717575044978,-568.09363526,0.00019178,2]
[328588292,1717575044988,-568.09363526,0.00019178,2]
[328588293,1717575044997,-568.09363526,0.00019178,2]
[328588294,1717575045006,-568.09363526,0.00019178,2]
[328588295,1717575045015,-568.09363526,0.00019178,2]
[328588296,1717575045024,-166.038078,0.00019178,2]
[328588297,1717575045037,-167.286632,0.00019178,2]
[328588298,1717575045046,-200.86939535,0.00019259,2]
[328588299,1717575045055,-200.0,0.0002,2]
[328588300,1717575045066,-200.86939535,0.00020533,2]
[328588301,1717575045078,-163.12815663,0.00020585,2]
[328588302,1717575045088,-2071.63731922,0.00021,2]
[328588303,1717575045097,-7366.84033526,0.00021,2]
[328588304,1717575045106,-568.44231144,0.00021805,2]
[328588305,1717575045116,-200.86939535,0.00021806,2]
[328588306,1717575045127,-2766.34638909,0.00021814,2]
[328588307,1717575045137,-2000.0,0.00021817,2]
[328588308,1717575045146,-5634.74532893,0.00021917,7]
[328588309,1717575045156,-500.56087765,0.00021917,2]
[328588310,1717575045164,-500.0,0.00021917,2]
[328588311,1717575045173,-298.47675774,0.00021917,2]
[328588312,1717575045182,-500.0,0.00021917,2]
[328588313,1717575045191,-500.0,0.00021917,2]
[328588314,1717575045202,-515.54367026,0.00021917,2]
[328588315,1717575045213,-500.0,0.00021917,2]
[328588316,1717575045224,-500.0,0.00021917,2]
[328588317,1717575045233,-500.0,0.00021917,2]
[328588318,1717575045246,-500.0,0.00021917,2]
[328588319,1717575045255,-500.0,0.00021917,2]
[328588320,1717575045265,-500.0,0.00021917,2]
[328588321,1717575045274,-617.30135461,0.00021917,2]
[328588322,1717575045283,-500.0,0.00021917,2]
[328588323,1717575045291,-500.0,0.00021917,2]
[328588324,1717575045301,-500.0,0.00021917,2]
[328588325,1717575045309,-500.0,0.00021917,2]
[328588326,1717575045318,-500.0,0.00021917,2]
[328588327,1717575045327,-500.0,0.00021917,2]
[328588328,1717575045336,-502.39974332,0.00021917,2]
[328588329,1717575045345,-500.0,0.00021917,2]
[328588330,1717575045354,-500.0,0.00021917,2]
[328588331,1717575045363,-502.76078092,0.00021917,2]
[328588332,1717575045372,-500.0,0.00021917,2]
[328588333,1717575045381,-502.00561489,0.00021917,2]
[328588334,1717575045390,-500.0,0.00021917,2]
[328588335,1717575045399,-500.0,0.00021917,2]
[328588336,1717575045408,-500.0,0.00021917,2]
[328588337,1717575045417,-500.0,0.00021917,2]
[328588338,1717575045426,-501.70383308,0.00021917,2]
[328588339,1717575045436,-521.9705358,0.00021917,2]
[328588340,1717575045445,-526.2,0.00021917,2]
[328588341,1717575045454,-500.0,0.00021917,2]
[328588342,1717575045464,-502.93219556,0.00021917,2]
[328588343,1717575045473,-500.0,0.00021917,2]
[328588344,1717575045482,-500.0,0.00021917,2]
[328588345,1717575045492,-500.0,0.00021917,2]
[328588346,1717575045502,-500.0,0.00021917,2]
[328588347,1717575045511,-500.0,0.00021917,2]
[328588348,1717575045520,-508.64659201,0.00021917,2]
[328588349,1717575045530,-707.07,0.00021917,2]
[328588350,1717575045541,-500.0,0.00021917,2]
[328588351,1717575045550,-500.0,0.00021917,2]
[328588352,1717575045559,-500.0,0.00021917,2]
[328588353,1717575045568,-410.83162805,0.00021917,2]
[328588354,1717575045577,-500.0,0.00021917,2]
[328588355,1717575045586,-500.0,0.00021917,2]
[328588356,1717575045595,-500.0,0.00021917,2]
[328588357,1717575045604,-500.0,0.00021917,2]
[328588358,1717575045613,-500.0,0.00021917,2]
[328588359,1717575045622,-500.0,0.00021917,2]
[328588360,1717575045631,-500.0,0.00021917,2]
[328588361,1717575045639,-500.0,0.00021917,2]
[328588362,1717575045648,-500.0,0.00021917,2]
[328588363,1717575045657,-556.43237968,0.00021917,2]
[328588364,1717575045667,-500.0,0.00021917,2]
[328588365,1717575045677,-232.89708558,0.00021917,2]
[328588366,1717575045686,-500.0,0.00021917,2]
[328588367,1717575045695,-500.0,0.00021917,2]
[328588368,1717575045704,-500.0,0.00021917,2]
[328588369,1717575045713,-532.83,0.00021917,2]
[328588370,1717575045722,-500.0,0.00021917,2]
[328588371,1717575045732,-500.0,0.00021917,2]
[328588372,1717575045742,-500.0,0.00021917,2]
[328588373,1717575045751,-500.0,0.00021917,2]
[328588374,1717575045760,-500.0,0.00021917,2]
[328588375,1717575045769,-500.0,0.00021917,2]
[328588376,1717575045778,-500.0,0.00021917,2]
[328588377,1717575045787,-200.0,0.00021917,2]
[328588378,1717575045796,-500.0,0.00021917,2]
[328588379,1717575045805,-500.0,0.00021917,2]
[328588380,1717575045814,-500.0,0.00021917,2]
[328588381,1717575045823,-500.0,0.00021917,2]
[328588382,1717575045832,-500.0,0.00021917,2]
[328588383,1717575045841,-500.0,0.00021917,2]
[328588384,1717575045850,-500.0,0.00021917,2]
[328588385,1717575045859,-500.0,0.00021917,2]
[328588386,1717575045868,-500.0,0.00021917,2]
[328588387,1717575045877,-500.0,0.00021917,2]
[328588388,1717575045886,-500.0,0.00021917,2]
[328588389,1717575045895,-500.0,0.00021917,2]
[328588391,1717575045904,-529.25,0.00021917,2]
[328588393,1717575045913,-500.0,0.00021917,2]
[328588395,1717575045922,-500.0,0.00021917,2]
[328588397,1717575045931,-500.0,0.00021917,2]
[328588399,1717575045940,-500.0,0.00021917,2]
[328588400,1717575045949,-500.0,0.00021917,2]
[328588403,1717575045958,-500.0,0.00021917,2]
[328588405,1717575045967,-500.0,0.00021917,2]
[328588406,1717575045976,-599.64767721,0.00021917,2]
[328588407,1717575045985,-500.0,0.00021917,2]
[328588408,1717575045994,-17.1413041,0.00021917,2]
[328588409,1717575046013,-482.8586959,0.00021917,2]
[328588410,1717575046023,-801.22,0.00021917,2]
[328588411,1717575046033,-500.0,0.00021917,2]
[328588413,1717575046046,-500.0,0.00021917,2]
[328588414,1717575046055,-500.0,0.00021917,2]
[328588416,1717575046064,-500.0,0.00021917,2]
[328588417,1717575046075,-500.0,0.00021917,2]
[328588418,1717575046085,-500.0,0.00021917,2]
[328588419,1717575046093,-500.0,0.00021917,2]
[328588420,1717575046102,-500.0,0.00021917,2]
[328588421,1717575046114,-500.0,0.00021917,2]
[328588422,1717575046123,-500.0,0.00021917,2]
[328588423,1717575046132,-500.0,0.00021917,2]
[328588424,1717575046142,-500.0,0.00021917,2]
[328588425,1717575046151,-500.0,0.00021917,2]
[328588426,1717575046160,-500.0,0.00021917,2]
[328588427,1717575046169,-505.36807024,0.00021917,2]
[328588428,1717575046179,-544.75681046,0.00021917,2]
[328588429,1717575046188,-500.0,0.00021917,2]
[328588430,1717575046197,-500.0,0.00021917,2]
[328588431,1717575046207,-500.0,0.00021917,2]
[328588432,1717575046216,-500.0,0.00021917,2]
[328588433,1717575046225,-249.54519896,0.00021917,2]
[328588434,1717575046235,-500.0,0.00021917,2]
[328588435,1717575046247,-500.0,0.00021917,2]
[328588436,1717575046256,-500.0,0.00021917,2]
[328588437,1717575046265,-500.0,0.00021917,2]
[328588438,1717575046274,-1052.63,0.00021917,2]
[328588439,1717575046282,-500.0,0.00021917,2]
[328588440,1717575046291,-500.0,0.00021917,2]
[328588441,1717575046300,-500.0,0.00021917,2]
[328588442,1717575046310,-500.0,0.00021917,2]
[328588443,1717575046319,-1073.44,0.00021917,2]
[328588444,1717575046329,-500.0,0.00021917,2]
[328588445,1717575046338,-500.0,0.00021917,2]
[328588446,1717575046347,-500.0,0.00021917,2]
[328588447,1717575046356,-500.0,0.00021917,2]
[328588448,1717575046365,-564.39254421,0.00021917,2]
[328588449,1717575046374,-500.0,0.00021917,2]
[328588450,1717575046383,-1260.3,0.00021917,2]
[328588451,1717575046392,-500.0,0.00021917,2]
[328588452,1717575046401,-500.0,0.00021917,2]
[328588453,1717575046410,-500.0,0.00021917,2]
[328588454,1717575046420,-500.0,0.00021917,2]
[328588455,1717575046430,-500.0,0.00021917,2]
[328588456,1717575046439,-500.0,0.00021917,2]
[328588457,1717575046448,-500.0,0.00021917,2]
[328588458,1717575046457,-500.0,0.00021917,2]
[328588459,1717575046466,-500.0,0.00021917,2]
[328588460,1717575046475,-500.0,0.00021917,2]
[328588461,1717575046486,-529.1,0.00021917,2]
[328588462,1717575046497,-500.0,0.00021917,2]
[328588463,1717575046506,-500.0,0.00021917,2]
[328588464,1717575046515,-500.0,0.00021917,2]
[328588465,1717575046523,-500.0,0.00021917,2]
[328588466,1717575046532,-500.0,0.00021917,2]
[328588467,1717575046541,-1461.09,0.00021917,2]
[328588468,1717575046550,-500.0,0.00021917,2]
[328588469,1717575046560,-500.0,0.00021917,2]
[328588470,1717575046569,-500.0,0.00021917,2]
[328588471,1717575046580,-500.0,0.00021917,2]
[328588472,1717575046589,-500.0,0.00021917,2]
[328588473,1717575046598,-500.0,0.00021917,2]
[328588474,1717575046608,-500.0,0.00021917,2]
[328588475,1717575046618,-500.0,0.00021917,2]
[328588476,1717575046627,-3434.77,0.00021917,2]
[328588477,1717575046636,-500.0,0.00021917,2]
[328588478,1717575046646,-500.0,0.00021917,2]
[328588479,1717575046655,-500.0,0.00021917,2]
[328588480,1717575046664,-500.0,0.00021917,2]
[328588481,1717575046675,-500.0,0.00021917,2]
[328588482,1717575046684,-961.14,0.00021917,2]
[328588483,1717575046693,-500.0,0.00021917,2]
[328588484,1717575046702,-330.99213354,0.00021917,2]
[328588485,1717575046711,-500.0,0.00021917,2]
[328588486,1717575046721,-500.0,0.00021917,2]
[328588487,1717575046730,-500.0,0.00021917,2]
[328588488,1717575046740,-595.39612652,0.00021917,2]
[328588489,1717575046749,-500.0,0.00021917,2]
[328588490,1717575046758,-500.0,0.00021917,2]
[328588491,1717575046766,-500.0,0.00021917,2]
[328588492,1717575046775,-1565.48,0.00021917,2]
[328588493,1717575046784,-500.0,0.00021917,2]
[328588494,1717575046794,-693.63,0.00021917,2]
[328588495,1717575046803,-500.0,0.00021917,2]
[328588496,1717575046812,-500.0,0.00021917,2]
[328588497,1717575046822,-500.0,0.00021917,2]
[328588498,1717575046831,-576.65,0.00021917,2]
[328588499,1717575046840,-500.0,0.00021917,2]
[328588500,1717575046849,-586.17,0.00021917,2]
[328588501,1717575046858,-500.0,0.00021917,2]
[328588502,1717575046868,-500.0,0.00021917,2]
[328588503,1717575046877,-2453.61,0.00021917,2]
[328588504,1717575046887,-500.0,0.00021917,2]
[328588505,1717575046896,-500.0,0.00021917,2]
[328588506,1717575046905,-500.0,0.00021917,2]
[328588507,1717575046914,-330.07100096,0.00021917,2]
[328588508,1717575046924,-634.04,0.00021917,2]
[328588509,1717575046933,-500.0,0.00021917,2]
[328588510,1717575046942,-500.0,0.00021917,2]
[328588511,1717575046951,-2472.35,0.00021917,2]
[328588512,1717575046960,-500.0,0.00021917,2]
[328588513,1717575046969,-422.88436125,0.00021917,2]
[328588514,1717575046978,-860.25,0.00021917,2]
[328588515,1717575046988,-500.0,0.00021917,2]
[328588516,1717575046998,-567.39,0.00021917,2]
[328588517,1717575047007,-573.85,0.00021917,2]
[328588518,1717575047016,-500.0,0.00021917,2]
[328588519,1717575047026,-500.0,0.00021917,2]
[328588520,1717575047039,-500.0,0.00021917,2]
[328588521,1717575047047,-820.47,0.00021917,2]
[328588522,1717575047057,-500.0,0.00021917,2]
[328588523,1717575047065,-500.0,0.00021917,2]
[328588524,1717575047076,-166.666666,0.00021918,2]
[328588525,1717575047086,-88888.0,0.00022091,3]
[328588526,1717575047095,-163.12815663,0.00022091,2]
[328588527,1717575047105,-500.0,0.0002219,2]
[328588528,1717575047118,-500.0,0.0002219,2]
[328588529,1717575047128,-509.31022994,0.00022191,2]
[328588530,1717575047139,-510.97125932,0.00022191,2]
[328588531,1717575047147,-500.0,0.00022191,2]
[328588532,1717575047156,-500.0,0.00022191,2]
[328588533,1717575047165,-501.49085656,0.00022191,2]
[328588534,1717575047175,-500.0,0.00022191,2]
[328588535,1717575047184,-500.0,0.00022191,2]
[328588536,1717575047194,-554.67898912,0.00022191,2]
[328588537,1717575047205,-500.0,0.00022191,2]
[328588538,1717575047215,-500.0,0.00022191,2]
[328588539,1717575047224,-500.0,0.00022191,2]
[328588540,1717575047235,-363.30574917,0.00022191,2]
[328588541,1717575047246,-500.0,0.00022191,2]
[328588542,1717575047255,-500.0,0.00022191,2]
[328588543,1717575047264,-510.24803178,0.00022191,2]
[328588544,1717575047273,-500.0,0.00022191,2]
[328588545,1717575047282,-500.0,0.00022191,2]
[328588546,1717575047292,-500.0,0.00022191,2]
[328588547,1717575047302,-243.93155008,0.00022191,2]
[328588548,1717575047311,-506.42979066,0.00022191,2]
[328588549,1717575047320,-529.97897622,0.00022191,2]
[328588550,1717575047331,-500.0,0.00022191,2]
[328588551,1717575047341,-526.2,0.00022191,2]
[328588552,1717575047351,-500.0,0.00022191,2]
[328588553,1717575047361,-500.0,0.00022191,2]
[328588554,1717575047370,-500.0,0.00022191,2]
[328588555,1717575047379,-707.07,0.00022191,2]
[328588556,1717575047388,-500.0,0.00022191,2]